Cogmind - Beta 16 @@@ ROGUE MODE // 2025.10.29 @ 02:14:32 Player: pappous Result: Destroyed by 1V-Y82(R) with Subdweller Machine Gun Performance ------------- Evolutions (0) 0 Regions Visited (2) 400 Robots Destroyed (15) 75 Value Destroyed (527) 527 Prototype IDs (0) 0 Alien Tech Used (0) 0 Bonus (0) 0 TOTAL SCORE: 1002 Bonus ------- None Cogmind --------- Core Integrity 0/250 Matter 264/300 Energy 100/100 System Corruption 2% Temperature Cool (0) Movement Rolling (130) Ox2 Location -10/Subcaves Parts ------- > --- POWER (1) -------- Subdweller Power Source > --- PROPULSION (2) --- Subdweller Monowheel > --- UTILITY (2) ------ High-capacity Storage Unit > --- WEAPON (2) ------- Light Assault Rifle Rocket Launcher > --- INVENTORY (20) --- Subdweller Power Source Improved Heat Sink Improved Heat Sink Huge Storage Unit Subdweller Optics Sensor Array Targeting Computer Medium Armor Plating Makeshift Hacking Suite Medium Laser Particle Gun Light Assault Rifle Subdweller Machine Gun Subdweller Machine Gun Subdweller Machine Gun Rocket Launcher Datajack Peak State ------------ > --- POWER ------------ Subdweller Power Source > --- PROPULSION ------- Light Treads Subdweller Monowheel > --- UTILITY ---------- High-capacity Storage Unit Sensor Array > --- WEAPON ----------- Particle Gun Light Assault Rifle > --- INVENTORY -------- Subdweller Power Source Subdweller Monowheel Improved Heat Sink Huge Storage Unit Subdweller Optics Sensor Array Targeting Computer Medium Armor Plating Makeshift Hacking Suite Medium Laser Light Assault Rifle Subdweller Machine Gun Subdweller Machine Gun Subdweller Machine Gun Rocket Launcher Rocket Launcher Datajack [Rating: 13] Favorites ----------- Power Light Ion Engine Engine Light Ion Engine Propulsion Light Treads Treads Light Treads Wheel Compact Wheel Utility Sensor Array Device Sensor Array Storage High-capacity Storage Unit Weapon Light Assault Rifle Energy Gun Particle Gun Ballistic Gun Light Assault Rifle Launcher Rocket Launcher Build | -11 -10 -10 ------- Run | Yrd Mat Sub Slots Evolved . | . . . Power . | . . . Propulsion . | . . . Utility . | . . . Weapon . | . . . Parts Attached 20 | 6 9 5 Power 2 | 1 . 1 Engine 2 | 1 . 1 Core . | . . . Reactor . | . . . Propulsion 5 | 2 1 2 Treads 1 | 1 . . Leg . | . . . Wheel 4 | 1 1 2 Hover . | . . . Flight . | . . . Utility 5 | 1 4 . Device 2 | . 2 . Storage 3 | 1 2 . Processor . | . . . Hackware . | . . . Protection . | . . . Artifact . | . . . Weapon 8 | 2 4 2 Energy Gun 1 | . 1 . Energy Cannon . | . . . Ballistic Gun 5 | 2 2 1 Ballistic Cannon . | . . . Launcher 2 | . 1 1 Special Weapon . | . . . Impact Weapon . | . . . Slashing Weapon . | . . . Piercing Weapon . | . . . Special Melee Weapon . | . . . Unidentified Prototypes . | . . . Parts Lost 3 | . . 3 Power . | . . . Propulsion 2 | . . 2 Utility 1 | . . 1 Weapon . | . . . Highest Loss Streak 2 | . . 2 To Critical Strikes . | . . . Average Backups 10 | . 6 15 Power . | . . . Propulsion . | . 1 . Utility 4 | . 2 7 Weapon 3 | . 2 6 Tool/Special . | . . . Unused Backups 13 | . 2 11 Power 2 | . 1 1 Propulsion 1 | . 1 . Utility 6 | . . 6 Weapon 3 | . . 3 Tool/Special 1 | . . 1 Average Slot Usage (%) 96 | . 94 99 Engine 14 | . 14 14 Treads 13 | . 14 13 Wheel 13 | . 14 13 Device 10 | . 8 13 Storage 14 | . 14 14 Energy Gun 8 | . 8 7 Ballistic Gun 18 | . 19 16 Launcher 2 | . . 3 Peak Build Rating 13 | 6 12 13 Average Rating 9 | 3 8 11 On Entrance 5 | . 6 9 Avg Prop Armor Cover (%) 12 | 15 11 14 Naked Turns . | . . . Heaviest Build 88 | 10 88 51 Greatest Support 20 | 16 20 20 Greatest Overweight (x) 5 | . 5 3 Average Overweight (x) 1 | . . 2 Largest Inventory Capacity 25 | 8 25 20 Average Capacity 14 | 5 9 20 Most Carried 17 | 3 10 17 Average Carried 10 | 1 6 15 Final Capacity 20 | 8 20 20 Final Carried 17 | 3 10 17 Class Distribution -------------------- 100% | Mutant Dominant Class ---------------- Mutant | -10/Materials Mutant | -10/Subcaves Resources | -11 -10 -10 ----------- Run | Yrd Mat Sub Matter Collected 645 | 162 150 333 Remotely . | . . . Salvage Created 562 | . 229 333 Parts 33 | . 12 21 Haulers Intercepted . | . . . Recyclers Shooed . | . . . Parts Field Recycled . | . . . Retrieved Matter . | . . . Parts Self-Destructed 2 | . . 2 Prevented . | . . . Parts Restored . | . . . Kills | -11 -10 -10 ------- Run | Yrd Mat Sub Combat Hostiles Destroyed 15 | . 7 8 Guns 13 | . 7 6 AOE 2 | . . 2 Classes Destroyed 4 | . 2 2 Swarmer 3 | . 3 . Grunt 4 | . 4 . Sentry 1 | . . 1 Subdweller 7 | . . 7 Best Kill Streak 4 | . 2 4 Combat Bots Only 4 | . 2 4 Max Kills in Single Turn 1 | . 1 1 Gunslinging . | . . . Exploded 1 | . . 1 Melee . | . . . Uniques/NPCs Destroyed . | . . . Combat | -11 -10 -10 -------- Run | Yrd Mat Sub Hostile Shots Fired 73 | . 37 36 Missed 21 | . 10 11 Hits 52 | . 27 25 Projectile 52 | . 27 25 Critical Strikes 1 | . . 1 Damage Taken 789 | . 310 479 Core 264 | . 92 172 Absorbed by Shields . | . . . Core Remaining (%) 100 | 100 . . Volleys Fired 57 | . 32 25 Largest 2 | . 2 2 Hottest 85 | . 85 85 Shots Fired 108 | . 63 45 Gun 99 | . 62 37 Cannon . | . . . Launcher 9 | . 1 8 Special . | . . . Kinetic 70 | . 46 24 Thermal 29 | . 16 13 Explosive 9 | . 1 8 Electromagnetic . | . . . Robot Hit Streak 15 | . 6 15 Robot Miss Streak 4 | . 4 2 Penetration Max . | . . . Secondary Targets 1 | . . 1 Max Gunslinging Chain 1 | . . 1 Shots Hit Robots 66 | . 33 33 Core Hits 27 | . 12 15 Critical Kills . | . . . Critical Parts Destroyed 1 | . 1 . Critical Strikes 3 | . 1 2 Burn 2 | . . 2 Destroy 1 | . 1 . Melee Attacks . | . . . Impact . | . . . Slashing . | . . . Piercing . | . . . Sneak Attacks . | . . . Combat Hostiles . | . . . Follow-up Attacks . | . . . Damage Inflicted 1204 | . 407 797 Guns 776 | . 407 369 Cannons . | . . . Explosions 428 | . . 428 Melee . | . . . Ramming . | . . . Kinetic 483 | . 271 212 Thermal 293 | . 136 157 Explosive 428 | . . 428 Electromagnetic . | . . . Impact . | . . . Slashing . | . . . Piercing . | . . . Highest Corruption 2 | . 2 2 Average Corruption 2 | . 2 2 Corruption Purged . | . . . Corruption Blocked . | . . . Effects 12 | . 4 8 Message Errors 1 | . . 1 Matter Fused 4 | . 2 2 Heat Flow Errors 1 | . . 1 Energy Discharges 3 | . 1 2 Data Loss (minor) 1 | . 1 . Misfires 1 | . . 1 Alerts 1 | . . 1 Overload Shots . | . . . Overflow Damage . | . . . Projectiles . | . . . Explosions . | . . . Melee . | . . . Knockbacks . | . . . Impact . | . . . Kinetic . | . . . Secondary . | . . . Self-Inflicted Damage 25 | . . 25 Shots 1 | . . 1 Rammed . | . . . Targets Rammed . | . . . Kicked . | . . . Crushed . | . . . Highest Temperature 186 | . 152 186 Average Temperature 49 | . 61 20 Received Heat Transfer 180 | . 108 72 Siege Activations . | . . . Martial Activations . | . . . Shielding Activations . | . . . Robots Disrupted . | . . . Combat Hostiles . | . . . Robots Corrupted . | . . . Combat Hostiles . | . . . Parts Fried . | . . . Impact Corruptions . | . . . Robots Melted . | . . . Combat Hostiles . | . . . Parts Melted 3 | . . 3 Heat Transferred 851 | . 333 518 Parts Sabotaged . | . . . Parts Stolen . | . . . Parts Stripped . | . . . Power Chain Reactions . | . . . Alert | -11 -10 -10 ------- Run | Yrd Mat Sub Maximum Alert Level . | . . . Low Security (%) 100 | 100 100 . Level 1 . | . . . Level 2 . | . . . Level 3 . | . . . Level 4 . | . . . Level 5 . | . . . High Security . | . . . Max Security . | . . . Peak Influence 141 | . 141 . Initial . | . . . Average 33 | . 37 . Influence Increases 276 | . 256 20 Destroy 0b10 Robot/C 160 | . 140 20 Destroy Leader 30 | . 30 . Disable Machine 15 | . 15 . Destroy Structure 11 | . 11 . Partial Spotted 15 | . 15 . Lose Combat Pursuer 45 | . 45 . Influence Decreases 276 | . 140 136 Entered New Map 56 | . . 56 Time Decay 216 | . 140 76 Lost Part 4 | . . 4 Squads Dispatched . | . . . Investigation . | . . . Extermination . | . . . Reinforcement . | . . . Assault . | . . . Garrison . | . . . Intercept . | . . . Searches Triggered . | . . . Construction Impeded . | . . . Haulers Reinforced . | . . . Active Scanning Responses . | . . . Cargo Convoy Interrupts . | . . . Stealth | -11 -10 -10 --------- Run | Yrd Mat Sub Distress Signals 2 | . 2 . Communications Jammed . | . . . Distress Signals . | . . . Times Spotted 26 | . 9 17 Peak Tracking Total 7 | . 4 7 Tactical Retreats 2 | . 2 . Traps | -11 -10 -10 ------- Run | Yrd Mat Sub Traps Triggered 1 | . 1 . Indirectly . | . . . Trap Hack Attempts . | . . . Triggered . | . . . Disarmed . | . . . Reprogrammed . | . . . Reused . | . . . Traps Extracted . | . . . Installed . | . . . Triggered . | . . . Machines | -11 -10 -10 ---------- Run | Yrd Mat Sub Machines Disabled 1 | . 1 . Max in Single Turn 1 | . 1 . Machines Repaired . | . . . Machines Dismantled . | . . . Machines Sabotaged . | . . . Overloaded Fab Kills . | . . . Hacking | -11 -10 -10 --------- Run | Yrd Mat Sub Machines Accessed 1 | . 1 . Terminals 1 | . 1 . Fabricators . | . . . Repair Stations . | . . . Recycling Units . | . . . Scanalyzers . | . . . Garrison Access . | . . . Total Hacks 1 | . 1 . Successful 1 | . 1 . Failed . | . . . Catastrophic . | . . . Database Lockouts . | . . . Manual . | . . . Terminals 1 | . 1 . Fabricators . | . . . Repair Stations . | . . . Recycling Units . | . . . Scanalyzers . | . . . Garrison Access . | . . . Terminal Hacks 1 | . 1 . Record 1 | . 1 . Fabricator Hacks . | . . . Repair Station Hacks . | . . . Recycling Unit Hacks . | . . . Scanalyzer . | . . . Garrison Access Hacks . | . . . Unauthorized Hacks . | . . . Terminals . | . . . Fabricators . | . . . Repair Stations . | . . . Recycling Units . | . . . Scanalyzers . | . . . Garrison Access . | . . . Data Cores Recovered . | . . . Used . | . . . Hacking Detections 1 | . 1 . Full Trace Events . | . . . Feedback Events . | . . . Feedback Blocked . | . . . Robot Schematics Acquired . | . . . Robots Built . | . . . Authchips . | . . . Time . | . . . Total Robot Build Rating . | . . . Part Schematics Acquired . | . . . Parts Built . | . . . Authchips . | . . . Time . | . . . Total Part Build Rating . | . . . Part Studies Acquired . | . . . Parts Repaired . | . . . Time . | . . . Parts Recycled . | . . . Recycled Matter . | . . . Retrieved Matter . | . . . Retrieved Components . | . . . Parts Scanalyzed . | . . . Part Schematics Acquired . | . . . Parts Damaged . | . . . Bothacking | -11 -10 -10 ------------ Run | Yrd Mat Sub Used RIF Installer . | . . . Robots Hacked . | . . . Non-combat . | . . . Combat . | . . . Robot Hacks Applied . | . . . Relay Couplers Released . | . . . Fabnet Peak Effective % . | . . . Robots Rewired . | . . . Allies Hacked . | . . . Hacks Repelled . | . . . Allies | -11 -10 -10 -------- Run | Yrd Mat Sub Total Allies . | . . . Largest Group . | . . . Highest-Rated Group . | . . . Highest-Rated Ally . | . . . Total Orders . | . . . Ally Attacks . | . . . Total Damage . | . . . Kills . | . . . Allies Corrupted . | . . . Allies Melted . | . . . Intel | -11 -10 -10 ------- Run | Yrd Mat Sub Active Infowar (turns) 729 | . 247 482 Sensors 729 | . 247 482 Robot Analysis Total . | . . . Derelict Logs Recovered . | . . . Drone Launches . | . . . Drone Recoveries . | . . . Exploration | -11 -10 -10 ------------- Run | Yrd Mat Sub Turns Passed 1091 | 62 544 485 Spaces Moved 642 | 42 327 273 Core 6 | 6 . . Treads 60 | . 59 1 Legs . | . . . Wheels 576 | 36 268 272 Hover . | . . . Flight . | . . . Fastest Speed 50 | 50 100 130 Average Speed 120 | 92 116 130 Slowest Speed 320 | 100 175 320 Overloaded Moves . | . . . Propulsion Burnouts . | . . . Robots Hopped . | . . . Potential Cave-ins . | . . . Cave-ins Triggered . | . . . Exploration Rate (%) 20 | 4 35 21 Regions Visited 2 Branch Regions 1 Pre-discovered Areas . | . . . Known Exits Taken . | . . . Unknown Exits Taken 2 | 1 1 . Scrap Searched 2 | . . 2 Spaces Dug . | . . . Terrain Destroyed 53 | . 11 42 Melee . | . . . Projectile . | . . . AOE 53 | . 11 42 Terrain Rammed . | . . . Walls Destroyed . | . . . Machines Disabled . | . . . Actions | -11 -10 -10 --------- Run | Yrd Mat Sub Total 852 | 62 429 361 Wait 96 | 11 42 43 Move 640 | 41 326 273 Hop . | . . . Pick Up 25 | 4 11 10 Fast Attach 6 | 5 1 . Attach 6 | 1 1 4 Detach 1 | . . 1 Swap 12 | . 9 3 Drop 9 | . 7 2 Fire 57 | . 32 25 Melee . | . . . Ram . | . . . Kick . | . . . Crush . | . . . Escape Stasis . | . . . Rewire . | . . . Trap . | . . . Miscellaneous . | . . . Route ------- -11/Scrapyard -10/Materials (discovered 2 exits: [*Mat] / [*Sub]) -10/Subcaves History --------- Turn | Location | Event 24 | -11/Scrapyard | Discovered new exit (range 14) 63 | -11/Scrapyard | Entered Materials 243 | -10/Materials | Discovered new exit (range 16) 308 | -10/Materials | Build established: Mutant 343 | -10/Materials | Discovered new exit (range 8) 607 | -10/Materials | Entered Subcaves 608 | -10/Subcaves | Approached by a straggling Scientist 652 | -10/Subcaves | Disturbed a concealed Subdweller 658 | -10/Subcaves | Core integrity fell below 50% 706 | -10/Subcaves | Ambushed by swarm of Subdwellers 708 | -10/Subcaves | Ambushed by Subdwellers from Twisted Machinery 708 | -10/Subcaves | Ambushed by Subdwellers from Twisted Machinery 710 | -10/Subcaves | Ambushed by Subdwellers from Twisted Machinery 760 | -10/Subcaves | Lost 3 allies 860 | -10/Subcaves | Ambushed by Subdwellers from Twisted Machinery 1063 | -10/Subcaves | Core integrity fell below 20% 1083 | -10/Subcaves | Ambushed by Subdwellers from Twisted Machinery 1092 | -10/Subcaves | Destroyed by 1V-Y82(R) with Subdweller Machine Gun Last Messages --------------- 00898_ System corrupted: Heat flow error (+226). 00899_ EL-SUA(u) builds Twisted Machinery. 00915_ The unstable cave ceiling collapses. 00917_ EL-SUA(u) builds Twisted Machinery. 00944_ System corrupted: Energy discharge (-66). 00960_ The unstable cave ceiling collapses. 00989_ Acquired 21 matter. 01041_ System corrupted: IFF burst signal emitted. 01059_ Critical hit (Burn: +37). 01063_ Y-45 Defender destroyed. 01065_ Acquired 12 matter. 01073_ Imp. Ion Engine fries itself beyond repair. 01081_ Heat Sink fries itself beyond repair. 01083_ 76-PID(R) emerges from the Twisted Machinery. 01087_ Sub. Power Source shoots sparks and powers down. 01087_ System corrupted: FCS attempts to trigger Lgt. Assault Rifle. 01087_ System corrupted: Lgt. Assault Rifle misfires. 01088_ Lgt. Treads destroyed. 01090_ 76-PID(R) destroyed. 01090_ Sensor Array destroyed. Map ----- +----------------------------------------------------+ | ### #?????####??????????????????????????????? | | #?# ##???? ##?????????????????????????????? | | #### #???# ##????????????????????????????? | | #?# #???# #????????????????????????????? | | #?# ##### #????????????????????????????? | | ###### #?????????????????????????????? | | ##???# #??????????????????????????????? | | ?????## # ##??????????????????????????????? | | ??????####### ##???????????????????????????????? | | ????????????## #????????????????????????????????? | | ?????????????# #????????????????????????????????? | | ?????????????# #????????######??????????????????? | | ????????????## #??????## ####???????????????? | | ????????????# #?????## ! ???????????????? | | ???????????### %##???## ?????????????????? | | ?????????### ##### #????????????????????? | | ????????## ## #?????????????????????? | | ???????# * #?????????????????????? | | ???????### # %= ##?????????????????????? | | ?????????######### ######?????????????????? | | ?????????????????# % #####?????????????? | | ?????????????????## %% " #?????????????? | | ??????????????????# %% % " ##????????????? | | ??????????????????## # "" ???????????? | | ???????????????????## # "?????????????? | | ????????????????????## @ &&"" ""?????????????? | | ?????????????????????# %""#""#?????????????? | | ?????????????????????# "" #????????????????? | | ?????????????????????## " #????????????????? | | ??????????????????????### #????????????????? | | ????????????????????????# #????????????????? | | ???????????????????????? #????????????????? | | ????????????????????????# % ##????????????????? | | ???????????????????????? ?????????????????? | | ???????????????????????? ????????????????? | | ???????????????????????? R # ???????????????? | | ???????????????????????? ???????????????? | | ???????????????????????? ? #??????????????? | | ???????????????????????? ????????????????? | | ???????????????????????? # ???????????????????? | | ????????????????????????##? ?????????????????????? | | ?????????????????????????????????????????????????? | | ?????????????????????????????????????????????????? | | ?????????????????????????????????????????????????? | | ?????????????????????????????????????????????????? | | ?????????????????????????????????????????????????? | | ?????????????????????????????????????????????????? | | ?????????????????????????????????????????????????? | | ?????????????????????????????????????????????????? | | ?????????????????????????????????????????????????? | +----------------------------------------------------+ Best States ------------- Heat Dissipation 39 Energy Generation 15 Energy Capacity 200 Matter Stores 300 Matter Capacity 300 Sight Range 16 Robot Scan Range 14 Terrain Scan Density 10 Evasion (%) 50 Recoil Reduction 1 Item Schematics ----------------- None Robot Schematics ------------------ None Fabricated ------------ Nothing Repaired ---------- Nothing Studied --------- None Alien Tech Used ----------------- None Achievements -------------- DATA ERROR: Steam Global Achievement% Organ Harvest Challenges ------------ None Game ------ Seed ChromionPoweredExpander Manual? 0 Play Time 00:20:59 Cumulative 96.2 hours Start 2025.10.29 @ 01:40:56 End 2025.10.29 @ 02:14:32 Sessions 1 Manual Loads 0 Difficulty Rogue Special Mode None Game No. 130 Rogue 130 Adventurer 0 Explorer 0 Win Type - Total 1 Types 1/0/0/0/0/0/0/0/0/0 Lore% 29 Gallery% 44 Achievement% 25 Wizard Run 0 Options --------- Layout 0 ASCII 0 Keyboard 0 Movement Mouse Keybinds 0 Fullscreen 1 Font 18/Smallcaps Map View 76x50 Zoom Use 0% Tactical HUD 1 Map Filters NONE Filters NONE Steam 1 RUN: 593c8d6c-3ee1-4444-ab9a-f1802cf8840d